fUSD/lending_fUSD_20251213
["ID","MTS","AMOUNT","RATE_DAILY","PERIOD"]
[398422058,1765636237705,-243.35649499,0.00016175,2]
[398422059,1765636237715,-1828.0,0.00016179,2]
[398422060,1765636237726,-5200.03083788,0.000162,5]
[398422061,1765636237736,-1735.0,0.00016212,2]
[398422062,1765636237746,-799.0,0.0001622,2]
[398422063,1765636237758,-203.0,0.0001624,2]
[398422064,1765636237769,-212.0,0.0001624,2]
[398422065,1765636237780,-1144.0,0.00016244,2]
[398422066,1765636237791,-15481.71225225,0.00016264,2]
[398422067,1765636237801,-799.0,0.00016275,2]
[398422068,1765636237812,-555.0,0.00016276,2]
[398422069,1765636237821,-7901.25999694,0.00016295,2]
[398422070,1765636237832,-799.0,0.0001633,2]
[398422071,1765636237841,-262.46600942,0.00016338,2]
[398422072,1765636237851,-482.19817519,0.00016355,2]
[398422073,1765636237861,-799.0,0.00016385,2]
[398422074,1765636237871,-15481.71225225,0.00016396,2]
[398422075,1765636237881,-343447.50159289,0.000164,2]
[398422076,1765636237889,-162.60385665,0.00016424,2]
[398422077,1765636237899,-500.0,0.00016437,2]
[398422078,1765636237908,-999.62,0.00016438,2]
[398422079,1765636237917,-7320.04,0.00016438,2]
[398422080,1765636237927,-799.0,0.0001644,2]
[398422081,1765636237938,-155.83,0.00016452,2]
[398422082,1765636237947,-500.0,0.00016466,2]
[398422083,1765636237956,-161.16,0.00016467,2]
[398422084,1765636237966,-200.0,0.00016475,2]
[398422085,1765636237974,-500.0,0.00016475,2]
[398422086,1765636237983,-200.0,0.00016475,2]
[398422087,1765636237992,-799.0,0.00016495,2]
[398422088,1765636238002,-7901.25999694,0.00016525,2]
[398422089,1765636238011,-15481.71225225,0.00016528,2]
[398422091,1765636238020,-235.49,0.00016529,2]
[398422092,1765636238030,-200.0,0.00016534,2]
[398422093,1765636238039,-595.37131296,0.00016548,2]
[398422094,1765636238048,-799.0,0.0001655,2]
[398422095,1765636238058,-262.46600941,0.00016598,2]
[398422096,1765636238067,-482.19817519,0.00016664,2]
[398422097,1765636238076,-999.62,0.00016712,2]
[398422098,1765636238086,-150.0,0.00016718,2]
[398422099,1765636238095,-150.0,0.00016718,2]
[398422100,1765636238105,-150.0,0.00016718,2]
[398422101,1765636238114,-150.0,0.00016718,2]
[398422102,1765636238124,-150.0,0.00016718,2]
[398422103,1765636238134,-150.0,0.00016718,2]
[398422104,1765636238517,-227.8103482,0.00016718,2]
[398422105,1765636238529,-150.60890833,0.00016718,2]
[398422106,1765636238538,-150.0,0.00016718,2]
[398422107,1765636238548,-152.57211274,0.00016718,2]
[398422108,1765636238557,-150.0,0.00016718,2]
[398422109,1765636238567,-500.0,0.00016718,2]
[398422110,1765636238576,-150.0,0.00016718,2]
[398422111,1765636238585,-500.0,0.00016718,2]
[398422112,1765636238595,-150.0,0.00016718,2]
[398422113,1765636238604,-840.0,0.00016718,2]
[398422114,1765636238617,-150.0,0.00016718,2]
[398422115,1765636238626,-150.0,0.00016718,2]
[398422116,1765636238635,-150.0,0.00016718,2]
[398422117,1765636238643,-150.0,0.00016718,2]
[398422118,1765636238652,-150.0,0.00016718,2]
[398422119,1765636238661,-500.0,0.00016718,2]
[398422120,1765636238670,-153.60065798,0.00016718,2]
[398422121,1765636238678,-150.0,0.00016718,2]
[398422122,1765636238687,-500.0,0.00016718,2]
[398422123,1765636238696,-150.0,0.00016718,2]
[398422124,1765636238705,-150.0,0.00016718,2]
[398422125,1765636238714,-151.0906704,0.00016718,2]
[398422126,1765636238723,-267.97401164,0.00016718,2]
[398422127,1765636238732,-500.0,0.00016718,2]
[398422128,1765636238741,-500.0,0.00016718,2]
[398422129,1765636238749,-7901.25999694,0.00016754,2]
[398422130,1765636238758,-297.34012987,0.00016824,2]
[398422131,1765636238767,-150.0,0.00016855,2]
[398422132,1765636238776,-150.0,0.00016855,2]
[398422133,1765636238786,-500.0,0.00016855,2]
[398422134,1765636238796,-150.0,0.00016855,2]
[398422135,1765636238805,-500.0,0.00016855,2]
[398422136,1765636238815,-840.0,0.00016855,2]
[398422137,1765636238825,-200.0,0.00016855,2]
[398422138,1765636238834,-150.0,0.00016855,2]
[398422139,1765636238844,-500.0,0.00016855,2]
[398422140,1765636238853,-500.0,0.00016855,2]
[398422141,1765636238863,-150.0,0.00016855,2]
[398422142,1765636238872,-500.0,0.00016855,2]
[398422143,1765636238882,-500.0,0.00016855,2]
[398422144,1765636238892,-262.46600941,0.00016859,2]
[398422145,1765636238901,-185.98974756,0.00016916,2]
[398422146,1765636238911,-168.0,0.00016917,2]
[398422147,1765636238921,-168.0,0.00016919,2]
[398422148,1765636238930,-173.62634316,0.00016923,2]
[398422149,1765636238939,-510.0,0.0001696,2]
[398422150,1765636238949,-166.96872211,0.00016973,2]
[398422151,1765636238958,-500.0,0.00016973,2]
[398422152,1765636238967,-500.0,0.00016973,2]
[398422153,1765636238977,-362.943865,0.00016973,2]
[398422154,1765636238986,-500.0,0.00016973,2]
[398422155,1765636238997,-500.0,0.00016973,2]
[398422156,1765636239006,-165.05782679,0.00016973,2]
[398422157,1765636239017,-501.34740605,0.00016973,2]
[398422158,1765636239027,-500.0,0.00016973,2]
[398422159,1765636239037,-500.0,0.00016973,2]
[398422160,1765636239047,-500.52668444,0.00016973,2]
[398422161,1765636239057,-223.83121583,0.00016973,2]
[398422162,1765636239067,-500.0,0.00016973,2]
[398422163,1765636239078,-376.6677597,0.00016973,2]
[398422164,1765636239088,-500.0,0.00016973,2]
[398422165,1765636239099,-500.69569811,0.00016973,2]
[398422166,1765636239109,-500.26433138,0.00016973,2]
[398422167,1765636239120,-500.40431242,0.00016973,2]
[398422168,1765636239131,-500.0,0.00016973,2]
[398422169,1765636239141,-500.0,0.00016973,2]
[398422170,1765636239151,-500.60353783,0.00016973,2]
[398422171,1765636239162,-500.0,0.00016973,2]
[398422172,1765636239173,-165.64214933,0.00016973,2]
[398422173,1765636239184,-276.1948738,0.00016973,2]
[398422174,1765636239194,-500.0,0.00016973,2]
[398422175,1765636239205,-500.0,0.00016973,2]
[398422176,1765636239215,-500.0,0.00016973,2]
[398422177,1765636239225,-482.77559391,0.00016973,2]
[398422178,1765636239235,-500.0,0.00016973,2]
[398422179,1765636239245,-500.0,0.00016973,2]
[398422180,1765636239255,-500.0,0.00016973,2]
[398422181,1765636239264,-168.44035917,0.00016973,2]
[398422182,1765636239274,-500.0,0.00016973,2]
[398422183,1765636239284,-500.0,0.00016973,2]
[398422184,1765636239294,-201.4427787,0.00016973,2]
[398422185,1765636239304,-500.6273257,0.00016973,2]
[398422186,1765636239313,-500.0,0.00016973,2]
[398422187,1765636239323,-500.0,0.00016973,2]
[398422189,1765636239333,-161.89218432,0.00016973,2]
[398422190,1765636239345,-482.19817519,0.00016973,2]
[398422191,1765636239354,-7901.25999694,0.00016983,2]
[398422192,1765636239363,-999.62,0.00016986,2]
[398422193,1765636239373,-606.76,0.00016986,2]
[398422194,1765636239384,-183.67518317,0.0001699,2]
[398422195,1765636239392,-183.67518317,0.0001699,2]
[398422196,1765636239401,-218.23294611,0.00016992,2]
[398422197,1765636239410,-150.0,0.00016992,2]
[398422198,1765636239419,-500.0,0.00016992,2]
[398422199,1765636239429,-200.0,0.00016992,2]
[398422200,1765636239438,-506.48269393,0.00016992,2]
[398422201,1765636239447,-840.0,0.00016992,2]
[398422202,1765636239457,-150.0,0.00016992,2]
[398422203,1765636239466,-329.0889974,0.00016992,2]
[398422204,1765636239475,-500.0,0.00016992,2]
[398422205,1765636239484,-150.0,0.00016992,2]
[398422206,1765636239493,-500.0,0.00016992,2]
[398422207,1765636239502,-500.0,0.00016992,2]
[398422208,1765636239511,-168.0,0.00016994,2]
[398422209,1765636239520,-500.0,0.00016999,2]
[398422210,1765636239530,-500.0,0.00016999,2]
[398422211,1765636239539,-307.76658629,0.00016999,2]
[398422212,1765636239548,-150.0,0.00016999,2]
[398422213,1765636239558,-150.0,0.00017,2]
[398422214,1765636239567,-2875.08394241,0.00017,2]
[398422215,1765636239576,-150.0,0.00017,2]
[398422216,1765636239585,-8646.4204085,0.00017,2]
[398422217,1765636239595,-150.0,0.00017,2]
[398422218,1765636239607,-2578.29282872,0.00017,2]
[398422219,1765636239616,-150.0,0.00017,2]
[398422220,1765636239625,-3739.96578814,0.00017,2]
[398422221,1765636239635,-1000.0,0.00017,2]
[398422222,1765636239644,-2458854.36337226,0.00017,2]
[398422224,1765636239897,-168.0,0.00016265,2]
[398422225,1765636239909,-366.0,0.00016298,2]
[398422226,1765636239918,-15481.71225225,0.00016659,2]
[398422227,1765636239928,-585256.21020264,0.00017,2]
[398422228,1765636239939,-673.8191345,0.00017,2]
[398422229,1765636239963,-1627.31998834,0.00017,2]
[398422230,1765636239976,-2181.63349884,0.00017,2]
[398422231,1765636240382,-1.7e-07,0.00017,2]
[398422232,1765636240419,-649.47026644,0.00017,2]
[398422233,1765636240430,-278.985852,0.00017,2]
[398422245,1765636242358,-267.470874,0.00017,2]
[398422246,1765636242528,-2630.64669746,0.00017,2]
[398422247,1765636242539,-9360.5419525,0.00017,2]
[398422248,1765636242592,-460.71535664,0.00017,2]
[398422249,1765636242603,-1612.92171078,0.00017,2]
[398422250,1765636242619,-346316.40702872,0.00017,2]
[398422251,1765636242630,-180532.0,0.00017,2]
[398422252,1765636242642,-2342.33176275,0.00017,2]
[398422257,1765636246790,-2511.20327443,0.00016791,2]
[398422261,1765636287201,478.74,0.00013699,2]
[398422262,1765636319276,-1000.0,0.00015737,2]
[398422263,1765636319304,-168.9702,0.00015737,2]
[398422264,1765636319333,-2019.9262,0.00015737,2]
[398422265,1765636334368,-500.0,0.00015836,2]
[398422269,1765636366339,9105.4091,0.00015737,2]
[398422270,1765636384694,894.6009,0.00015737,2]
[398422271,1765636384723,105.3991,0.00015737,2]
[398422272,1765636392800,9894.6109,0.00015737,2]
[398422273,1765636392826,10000.01,0.00015737,2]
[398422274,1765636392863,10000.01,0.00015737,2]
[398422275,1765636392891,10000.01,0.00015737,2]
[398422276,1765636392916,10000.01,0.00015737,2]
[398422277,1765636392942,10000.01,0.00015737,2]
[398422278,1765636392968,10000.01,0.00015737,2]
[398422279,1765636392993,10000.01,0.00015737,2]
[398422280,1765636393019,10000.01,0.00015737,2]
[398422281,1765636393045,10000.01,0.00015737,2]
[398422282,1765636401552,-10000.01,0.00015737,2]
[398422283,1765636401724,-10000.01,0.00015737,2]
[398422284,1765636401849,-10000.01,0.00015737,2]
[398422285,1765636401979,-10000.01,0.00015737,2]
[398422286,1765636402115,-10000.01,0.00015737,2]
[398422287,1765636402251,-10000.01,0.00015737,2]
[398422288,1765636402377,-10000.01,0.00015737,2]
[398422289,1765636402488,-10000.01,0.00015737,2]
[398422290,1765636402616,-10000.01,0.00015737,2]
[398422291,1765636404498,-10000.01,0.00015737,2]
[398422292,1765636407715,-10000.01,0.00015737,2]
[398422293,1765636407922,-10000.01,0.00015737,2]
[398422294,1765636408052,-10000.01,0.00015737,2]
[398422295,1765636408192,-10000.01,0.00015737,2]
[398422296,1765636408402,-10000.01,0.00015737,2]
[398422297,1765636408512,-10000.01,0.00015737,2]
[398422298,1765636408667,-10000.01,0.00015737,2]
[398422299,1765636410583,-10000.01,0.00015737,2]
[398422303,1765636413652,-10000.01,0.00015737,2]
[398422304,1765636413823,-10000.01,0.00015737,2]
[398422305,1765636413952,-10000.01,0.00015737,2]
[398422306,1765636414064,-10000.01,0.00015737,2]
[398422307,1765636414195,-10000.01,0.00015737,2]
[398422308,1765636414326,-10000.01,0.00015737,2]
[398422309,1765636414457,-10000.01,0.00015737,2]
[398422310,1765636419734,-10000.01,0.00015737,2]
[398422311,1765636419877,-10000.01,0.00015737,2]
[398422312,1765636437766,-10000.01,0.00015737,2]
[398422313,1765636437943,-10000.01,0.00015737,2]
[398422314,1765636438059,-10000.01,0.00015737,2]
[398422315,1765636438175,-10000.01,0.00015737,2]
[398422316,1765636438311,-10000.01,0.00015737,2]
[398422317,1765636438434,-10000.01,0.00015737,2]
[398422323,1765636593739,-231.02384457,0.00015636,2]
[398422324,1765636593769,-1200.0,0.00015735,2]
[398422325,1765636593801,-300.0,0.00015735,2]
[398422326,1765636593833,-201.54304577,0.00015736,2]
[398422327,1765636593863,-500.0,0.00015736,2]
[398422328,1765636593895,-500.0,0.00015736,2]
[398422329,1765636593925,-215.98514589,0.00015736,2]
[398422330,1765636593962,-500.0,0.00015736,2]
[398422331,1765636593998,-500.0,0.00015736,2]
[398422332,1765636594032,-163.75618618,0.00015736,2]
[398422333,1765636594061,-300.0,0.00015736,2]
[398422334,1765636594291,-775.39355518,0.00015737,2]
[398422335,1765636594328,-10000.01,0.00015737,2]
[398422336,1765636595813,-478.8388501,0.00015737,2]
[398422337,1765636602676,-10000.01,0.00015737,2]
[398422338,1765636602843,-10000.01,0.00015737,2]
[398422339,1765636605876,-10000.01,0.00015737,2]
[398422340,1765636606147,-10000.01,0.00015737,2]
[398422341,1765636610086,-10000.01,0.00015737,2]
[398422342,1765636610101,-10000.01,0.00015737,2]
[398422343,1765636611792,-10000.01,0.00015737,2]
[398422344,1765636611991,-10000.01,0.00015737,2]
[398422345,1765636615016,-500.0,0.00015736,2]
[398422346,1765636615050,-500.0,0.00015736,2]
[398422347,1765636615083,-500.0,0.00015736,2]
[398422348,1765636615116,-500.0,0.00015736,2]
[398422349,1765636615150,-500.0,0.00015736,2]
[398422350,1765636615184,-500.0,0.00015736,2]
[398422351,1765636615219,-582.34226219,0.00015736,2]
[398422352,1765636615352,-2835.32547562,0.00015737,2]
[398422353,1765636615379,-10000.01,0.00015737,2]
[398422354,1765636615441,-10000.01,0.00015737,2]
[398422355,1765636618007,-342.78,0.00015727,3]
[398422356,1765636618055,-9314.45,0.00015737,2]
[398422357,1765636618110,-10000.01,0.00015737,2]
[398422358,1765636618237,-10000.01,0.00015737,2]
[398422359,1765636624021,-10000.01,0.00015737,2]
[398422360,1765636630120,-10000.01,0.00015737,2]
[398422361,1765636634022,-500.0,0.00015736,2]
[398422362,1765636634182,-9000.01,0.00015737,2]
[398422363,1765636634206,-10000.01,0.00015737,2]
[398422364,1765636634230,-10000.01,0.00015737,2]
[398422365,1765636634287,-10000.01,0.00015737,2]
[398422366,1765636634555,-10000.01,0.00015737,2]
[398422367,1765636634849,-10000.01,0.00015737,2]
[398422368,1765636635176,-10000.01,0.00015737,2]
[398422369,1765636636869,-10000.01,0.00015737,2]
[398422370,1765636639516,-10000.01,0.00015737,2]
[398422371,1765636639534,-10000.01,0.00015737,2]
[398422372,1765636639574,-10000.01,0.00015737,2]
[398422373,1765636639690,-10000.01,0.00015737,2]
[398422374,1765636639837,-10000.01,0.00015737,2]
[398422375,1765636639930,-10000.01,0.00015737,2]
[398422376,1765636640076,-10000.01,0.00015737,2]
[398422377,1765636648634,-604.78089066,0.00015736,2]
[398422378,1765636649114,500.0,0.00015736,2]
[398422379,1765636652481,-270.70861805,0.00015737,2]
[398422380,1765636655885,-248.67720201,0.00015737,2]
[398422381,1765636656992,-251.32279799,0.00015737,2]
[398422382,1765636659624,-223.0315306,0.00015737,2]
[398422383,1765636661067,-236.39318782,0.00015737,2]
[398422384,1765636662491,-315.44807793,0.00015737,2]
[398422385,1765636663715,-9500.01,0.00015737,2]
[398422386,1765636663842,-3344.9401953,0.00015737,2]
[398422387,1765636663871,-3310.1296094,0.00015737,2]
[398422388,1765636664049,500.0,0.00015736,2]
[398422389,1765636664090,500.0,0.00015736,2]
[398422390,1765636664123,625.15337706,0.00015736,2]
[398422391,1765636664159,500.0,0.00015736,2]
[398422392,1765636664205,500.0,0.00015736,2]
[398422393,1765636664241,500.0,0.00015736,2]
[398422394,1765636664284,500.0,0.00015736,2]
[398422395,1765636664325,642.77713493,0.00015736,2]
[398422396,1765636664365,500.0,0.00015736,2]
[398422397,1765636664404,500.0,0.00015736,2]
[398422398,1765636664443,500.0,0.00015736,2]
[398422399,1765636664484,500.0,0.00015736,2]
[398422400,1765636664522,500.0,0.00015736,2]
[398422401,1765636664568,500.0,0.00015736,2]
[398422402,1765636664605,500.0,0.00015736,2]
[398422403,1765636664656,500.0,0.00015736,2]
[398422404,1765636664696,500.0,0.00015736,2]
[398422405,1765636664734,500.0,0.00015736,2]
[398422406,1765636664785,500.0,0.00015736,2]
[398422407,1765636664838,232.07948801,0.00015736,2]
[398422408,1765636664868,267.92051199,0.00015736,2]
[398422409,1765636678750,500.0,0.00015736,2]
[398422410,1765636678788,500.0,0.00015736,2]
[398422411,1765636678827,500.0,0.00015736,2]
[398422412,1765636678869,500.0,0.00015736,2]
[398422413,1765636678909,500.0,0.00015736,2]
[398422414,1765636678946,500.0,0.00015736,2]
[398422415,1765636678987,500.0,0.00015736,2]
[398422416,1765636679022,500.0,0.00015736,2]
[398422417,1765636679056,500.0,0.00015736,2]
[398422418,1765636679100,500.0,0.00015736,2]
[398422419,1765636679136,500.0,0.00015736,2]
[398422420,1765636698909,500.0,0.00015736,2]
[398422421,1765636698960,500.0,0.00015736,2]
[398422422,1765636699020,547.46093518,0.00015736,2]
[398422423,1765636703633,10000.01,0.00015637,2]
[398422424,1765636703658,9003.7303,0.00015637,2]
[398422425,1765636722024,1000.0,0.00015637,2]
[398422426,1765636723975,999.0,0.000158,3]
[398422427,1765636725004,4458.397967,0.00015756,2]
[398422428,1765636727475,-240.174312,0.00015836,2]
[398422429,1765636727680,-259.825688,0.00015836,2]
[398422430,1765636731899,9480.358624,0.00015637,2]
[398422431,1765636731927,10000.01,0.00015637,2]
[398422432,1765636731956,10000.01,0.00015637,2]
[398422433,1765636731983,10000.01,0.00015637,2]
[398422434,1765636732009,10000.01,0.00015637,2]
[398422435,1765636732037,10000.01,0.00015637,2]
[398422436,1765636742461,-196.44852365,0.00015636,2]
[398422437,1765636742988,-103.55147635,0.00015636,2]
[398422438,1765636744974,-300.0,0.00015636,2]
[398422439,1765636745008,-170.43260676,0.00015637,2]
[398422440,1765636747182,-227.18371677,0.00015637,2]
[398422441,1765636748928,-7539.78900913,0.00015637,2]
[398422442,1765636749046,-379.91887995,0.00015637,2]
[398422443,1765636749094,-10000.01,0.00015637,2]
[398422444,1765636750552,-213.56619461,0.00015637,2]
[398422445,1765636751990,-240.92022172,0.00015637,2]
[398422446,1765636752006,-10000.01,0.00015637,2]
[398422447,1765636754154,-191.5009891,0.00015637,2]
[398422448,1765636756191,-151.77929426,0.00015637,2]
[398422449,1765636758709,-300.65381628,0.00015637,2]
[398422450,1765636760665,-437.4270472,0.00015627,3]
[398422451,1765636763722,-223.6329528,0.00015627,3]
[398422452,1765636763749,-44.68807506,0.00015637,2]
[398422453,1765636765704,-205.66655264,0.00015637,2]
[398422454,1765636769636,-168.97012239,0.00015637,2]
[398422455,1765636771131,-168.86440661,0.00015637,2]
[398422456,1765636771521,360.63736955,0.00015537,2]
[398422457,1765636773011,-346.84279122,0.00015637,2]
[398422458,1765636775046,-296.68233263,0.00015637,2]
[398422459,1765636776437,-227.39792624,0.00015637,2]
[398422460,1765636777810,-244.25650455,0.00015637,2]
[398422461,1765636780963,-195.0,0.00015637,2]
[398422462,1765636782504,-210.22676936,0.00015637,2]
[398422463,1765636785501,-321.65938655,0.00015637,2]
[398422464,1765636787017,-334.05700596,0.00015637,2]
[398422465,1765636788788,-10000.01,0.00015637,2]
[398422466,1765636789040,-10000.01,0.00015637,2]
[398422467,1765636789473,-241.85908082,0.00015637,2]
[398422468,1765636792490,217.00737273,0.00015537,2]
[398422469,1765636792557,-166.66,0.00015637,2]
[398422470,1765636794707,-219.4470462,0.00015637,2]
[398422471,1765636794764,-10000.01,0.00015637,2]
[398422472,1765636794894,-10000.01,0.00015637,2]
[398422473,1765636796534,-203.05923496,0.00015637,2]
[398422474,1765636798986,-210.45714246,0.00015637,2]
[398422475,1765636800490,-275.44142224,0.00015637,2]
[398422476,1765636801834,5524.0,0.000119,5]
[398422477,1765636802076,5524.0,0.000117,3]
[398422478,1765636802311,10601.0,0.000116,2]
[398422479,1765636804616,-300.0,0.00015636,2]
[398422480,1765636804656,-41.89943304,0.00015636,2]
[398422481,1765636804718,171.0,6.2e-07,2]
[398422482,1765636806735,-258.10056696,0.00015636,2]
[398422483,1765636806758,-51.41905191,0.00015636,2]
[398422484,1765636809342,-215.54766289,0.00015636,2]
[398422485,1765636812014,-187.40482482,0.00015636,2]
[398422486,1765636813916,-181.54083601,0.00015636,2]
[398422487,1765636815890,-280.8700255,0.00015636,2]
[398422488,1765636821116,-154.87400577,0.00015627,2]
[398422489,1765636822507,3234.46809792,0.00015537,2]
[398422490,1765636822560,-124.13599423,0.00015627,2]
[398422491,1765636822584,-175.86400577,0.00015627,2]
[398422492,1765636832823,-173.3140724,0.00015557,2]
[398422493,1765636834820,-188.79555562,0.00015557,2]
[398422494,1765636838701,-602.93647271,0.00015557,2]
[398422495,1765636840649,-233.40484118,0.00015557,2]
[398422496,1765636842593,-300.0,0.00015557,2]
[398422497,1765636844556,-195.0,0.00015557,2]
[398422498,1765636846630,-347.01118975,0.00015557,2]
[398422499,1765636850027,-817.2076677,0.00015557,2]
[398422500,1765636852166,-275.2830713,0.00015557,2]
[398422501,1765636853667,-237.86045014,0.00015557,2]
[398422502,1765636857327,-216.55474762,0.00015557,2]
[398422503,1765636861089,-169.809,0.00015557,2]
[398422504,1765636862503,-195.0,0.00015557,2]
[398422505,1765636865637,-226.21266891,0.00015557,2]
[398422506,1765636865663,-64.2008891,0.00015557,2]
[398422507,1765636867163,-153.2516699,0.00015557,2]
[398422508,1765636867449,500.0,0.00015536,2]
[398422509,1765636869110,-314.8828819,0.00015557,2]
[398422510,1765636872542,-230.39840762,0.00015557,2]
[398422512,1765636877033,-257.91778498,0.00015557,2]
[398422513,1765636879542,-211.75337976,0.00015557,2]
[398422514,1765636881562,-190.70758739,0.00015557,2]
[398422516,1765636884023,-207.4,0.00015557,2]
[398422519,1765636887327,-216.56970674,0.00015557,2]
[398422520,1765636888745,-248.71531821,0.00015557,2]
[398422523,1765636893372,2083.528,0.00015324,2]
[398422524,1765636893417,170.359,0.00015324,2]
[398422531,1765636904711,-500.0,0.00015636,2]
[398422532,1765636904744,-254.87189136,0.00015636,2]
[398422533,1765636904775,-196.45498959,0.00015636,2]
[398422534,1765636904806,-444.01283587,0.00015636,2]
[398422535,1765636904838,-500.0,0.00015636,2]
[398422536,1765636904874,-500.0,0.00015636,2]
[398422537,1765636904907,-500.0,0.00015636,2]
[398422538,1765636904941,-500.0,0.00015636,2]
[398422539,1765636904976,-500.0,0.00015636,2]
[398422540,1765636905020,-500.0,0.00015636,2]
[398422541,1765636905057,-500.0,0.00015636,2]
[398422542,1765636905270,-209.33056636,0.00015636,2]
[398422545,1765636910644,-290.66943364,0.00015636,2]
[398422546,1765636910677,-500.0,0.00015636,2]
[398422547,1765636910711,-500.0,0.00015636,2]
[398422548,1765636910745,-500.0,0.00015636,2]
[398422549,1765636910778,-500.0,0.00015636,2]
[398422550,1765636910813,-500.0,0.00015636,2]
[398422551,1765636910847,-500.0,0.00015636,2]
[398422552,1765636910881,-500.0,0.00015636,2]
[398422553,1765636910920,-500.0,0.00015636,2]
[398422554,1765636910955,-500.0,0.00015636,2]
[398422555,1765636911150,-418.67113272,0.00015636,2]
[398422558,1765636916760,-81.32886728,0.00015636,2]
[398422559,1765636916794,-175.30706133,0.00015636,2]
[398422560,1765636916825,-283.21759887,0.00015636,2]
[398422561,1765636916854,-300.0,0.00015636,2]
[398422563,1765636918161,-8320.30294504,0.00015637,2]
[398422587,1765636965831,-499.84899266,0.00015636,2]
[398422588,1765636965864,-300.0,0.00015636,2]
[398422589,1765636965896,-300.0,0.00015636,2]
[398422590,1765636965965,-7800.31201468,0.00015637,2]
[398422592,1765636967102,1852.42,0.00015447,2]
[398422595,1765636969441,352.13739225,0.00015537,2]
[398422597,1765636971684,-4576.251847,0.00015618,2]
[398422598,1765636971725,-847.506306,0.00015637,2]
[398422615,1765636998332,-200.01126008,0.00015558,2]
[398422617,1765637001480,-224.13238124,0.00015558,2]
[398422619,1765637005664,390.8583,0.00015537,2]
[398422627,1765637017922,235.6966,0.00015537,2]
[398422635,1765637036229,500.0,0.00015537,2]
[398422645,1765637096946,5621.06039842,0.00015537,2]
[398422647,1765637120235,150.0,0.00015288,2]
[398422648,1765637120437,150.0,0.00015288,2]
[398422649,1765637127433,150.0,0.00015288,2]
[398422651,1765637127906,150.0,0.00015288,2]
[398422652,1765637128256,150.0,0.00015288,2]
[398422654,1765637143169,150.0,0.00015288,2]
[398422655,1765637162899,308.12021821,0.00015537,2]
[398422656,1765637174180,5882.7957,0.00015537,2]
[398422657,1765637186588,235.6966,0.00015537,2]
[398422658,1765637196573,9444.95573437,0.00015537,2]
[398422659,1765637205001,500.0,0.00015458,2]
[398422660,1765637234625,-3599.9446298,0.00015627,2]
[398422661,1765637234876,-2800.1207404,0.00015627,2]
[398422662,1765637234915,-1877.982863,0.00015627,2]
[398422663,1765637234949,-300.0,0.00015635,2]
[398422664,1765637235080,-1200.0,0.00015636,2]
[398422665,1765637235117,-300.0,0.00015636,2]
[398422666,1765637235153,-1200.0,0.00015636,2]
[398422667,1765637235187,-300.0,0.00015636,2]
[398422668,1765637235221,-300.0,0.00015636,2]
[398422669,1765637235256,-154.06647958,0.00015636,2]
[398422670,1765637235461,199.67448669,0.00015537,2]
[398422671,1765637235618,-6032.73462186,0.00015637,2]
[398422672,1765637235651,-10000.01,0.00015637,2]
[398422673,1765637236307,-195.0,0.00015637,2]
[398422674,1765637237966,-10000.01,0.00015637,2]
[398422675,1765637237981,-10000.01,0.00015637,2]
[398422676,1765637238001,-10000.01,0.00015637,2]
[398422677,1765637239224,-176.33941576,0.00015637,2]